fUSD/lending_fUSD_20250905
["ID","MTS","AMOUNT","RATE_DAILY","PERIOD"]
[383755815,1757109131247,-400.0,0.00036712,10]
[383755816,1757109131257,-400.0,0.00036712,10]
[383755817,1757109131267,-400.0,0.00036712,10]
[383755818,1757109131276,-400.0,0.00036712,10]
[383755819,1757109131286,-400.0,0.00036712,10]
[383755820,1757109131296,-400.0,0.00036712,10]
[383755821,1757109131305,-400.0,0.00036712,10]
[383755822,1757109131521,-400.0,0.00036712,10]
[383755823,1757109131551,-418.03,0.00036712,10]
[383755824,1757109131565,-400.0,0.00036712,10]
[383755825,1757109131575,-400.0,0.00036712,10]
[383755826,1757109131584,-400.0,0.00036712,10]
[383755827,1757109131594,-400.0,0.00036712,10]
[383755828,1757109131603,-400.0,0.00036712,10]
[383755829,1757109131612,-400.0,0.00036712,10]
[383755830,1757109131622,-400.0,0.00036712,10]
[383755831,1757109131631,-402.65845579,0.00036712,10]
[383755832,1757109131641,-400.0,0.00036712,10]
[383755833,1757109131651,-400.0,0.00036712,10]
[383755834,1757109131662,-400.0,0.00036712,10]
[383755835,1757109131671,-400.0,0.00036712,10]
[383755836,1757109131682,-244.12957885,0.00036712,10]
[383755837,1757109131692,-400.0,0.00036712,10]
[383755838,1757109131702,-449.01672582,0.00036712,10]
[383755839,1757109131712,-400.0,0.00036712,10]
[383755840,1757109131722,-400.0,0.00036712,10]
[383755841,1757109131732,-400.0,0.00036712,10]
[383755842,1757109131741,-400.0,0.00036712,10]
[383755843,1757109131751,-400.0,0.00036712,10]
[383755844,1757109131760,-400.0,0.00036712,10]
[383755845,1757109131770,-400.0,0.00036712,10]
[383755846,1757109131779,-400.0,0.00036712,10]
[383755847,1757109131789,-400.0,0.00036712,10]
[383755848,1757109131800,-400.0,0.00036712,10]
[383755849,1757109131811,-400.0,0.00036712,10]
[383755850,1757109131821,-400.0,0.00036712,10]
[383755851,1757109131831,-437.75,0.00036712,10]
[383755852,1757109131840,-420.25,0.00036712,10]
[383755853,1757109131850,-400.0,0.00036712,10]
[383755854,1757109131860,-400.0,0.00036712,10]
[383755855,1757109131870,-400.0,0.00036712,10]
[383755856,1757109131880,-400.0,0.00036712,10]
[383755857,1757109131890,-400.0,0.00036712,10]
[383755858,1757109131901,-400.0,0.00036712,10]
[383755859,1757109131912,-400.0,0.00036712,10]
[383755860,1757109131922,-400.0,0.00036712,10]
[383755861,1757109131931,-401.95412388,0.00036712,10]
[383755862,1757109131942,-310.9558321,0.00036712,10]
[383755863,1757109131952,-506.4,0.00036712,10]
[383755864,1757109131968,-400.0,0.00036712,10]
[383755865,1757109131978,-400.0,0.00036712,10]
[383755866,1757109131988,-400.0,0.00036712,10]
[383755867,1757109131998,-437.87,0.00036712,10]
[383755868,1757109132008,-400.0,0.00036712,10]
[383755869,1757109132018,-400.0,0.00036712,10]
[383755870,1757109132029,-400.0,0.00036712,10]
[383755871,1757109132039,-400.0,0.00036712,10]
[383755872,1757109132049,-400.0,0.00036712,10]
[383755873,1757109132058,-400.0,0.00036712,10]
[383755874,1757109132068,-400.0,0.00036712,10]
[383755875,1757109132078,-451.2,0.00036712,10]
[383755876,1757109132089,-400.0,0.00036712,10]
[383755877,1757109132099,-400.0,0.00036712,10]
[383755878,1757109132109,-400.0,0.00036712,10]
[383755879,1757109132119,-402.64816249,0.00036712,10]
[383755880,1757109132128,-400.0,0.00036712,10]
[383755881,1757109132139,-507.92,0.00036712,10]
[383755882,1757109132148,-400.0,0.00036712,10]
[383755883,1757109132158,-400.0,0.00036712,10]
[383755884,1757109132168,-400.0,0.00036712,10]
[383755885,1757109132178,-400.0,0.00036712,10]
[383755886,1757109132187,-400.0,0.00036712,10]
[383755887,1757109132197,-400.0,0.00036712,10]
[383755888,1757109132206,-521.5760253,0.00036712,10]
[383755889,1757109132216,-400.0,0.00036712,10]
[383755890,1757109132225,-400.0,0.00036712,10]
[383755891,1757109132235,-400.0,0.00036712,10]
[383755892,1757109132244,-400.0,0.00036712,10]
[383755893,1757109132255,-461.35,0.00036712,10]
[383755894,1757109132264,-458.84,0.00036712,10]
[383755895,1757109132276,-407.67234105,0.00036712,10]
[383755896,1757109132287,-400.0,0.00036712,10]
[383755897,1757109132297,-428.49,0.00036712,10]
[383755898,1757109132307,-1054.45,0.00036712,10]
[383755899,1757109132317,-409.45,0.00036712,10]
[383755900,1757109132326,-400.0,0.00036712,10]
[383755901,1757109132336,-400.0,0.00036712,10]
[383755902,1757109132345,-247.36023508,0.00036712,10]
[383755903,1757109132356,-400.0,0.00036712,10]
[383755904,1757109132367,-400.0,0.00036712,10]
[383755905,1757109132377,-542.29,0.00036712,10]
[383755906,1757109132388,-508.21,0.00036712,10]
[383755907,1757109132399,-400.0,0.00036712,10]
[383755908,1757109132408,-400.0,0.00036712,10]
[383755909,1757109132420,-191.43820799,0.00036712,10]
[383755910,1757109132428,-493.63,0.00036712,10]
[383755911,1757109132437,-400.0,0.00036712,10]
[383755912,1757109132446,-449.3,0.00036712,10]
[383755913,1757109132455,-400.0,0.00036712,10]
[383755914,1757109132465,-425.32,0.00036712,10]
[383755915,1757109132474,-400.0,0.00036712,10]
[383755916,1757109132483,-518.21,0.00036712,10]
[383755917,1757109132492,-510.04,0.00036712,10]
[383755918,1757109132501,-414.48,0.00036712,10]
[383755919,1757109132510,-400.0,0.00036712,10]
[383755920,1757109132519,-400.0,0.00036712,10]
[383755921,1757109132529,-400.0,0.00036712,10]
[383755922,1757109132539,-400.0,0.00036712,10]
[383755923,1757109132549,-153.113189,0.00036712,10]
[383755924,1757109132559,-400.0,0.00036712,10]
[383755925,1757109132571,-400.0,0.00036712,10]
[383755926,1757109132580,-970.87,0.00036712,10]
[383755927,1757109132591,-490.71,0.00036712,10]
[383755928,1757109132600,-400.0,0.00036712,10]
[383755929,1757109132610,-436.72,0.00036712,10]
[383755930,1757109132620,-400.0,0.00036712,10]
[383755931,1757109132630,-414.95,0.00036712,10]
[383755932,1757109132640,-400.0,0.00036712,10]
[383755933,1757109132650,-198.53462178,0.00036712,10]
[383755934,1757109132658,-400.0,0.00036712,10]
[383755935,1757109132667,-400.0,0.00036712,10]
[383755936,1757109132675,-400.0,0.00036712,10]
[383755937,1757109132683,-447.82,0.00036712,10]
[383755938,1757109132693,-647.6,0.00036712,10]
[383755939,1757109132703,-400.0,0.00036712,10]
[383755940,1757109132712,-400.0,0.00036712,10]
[383755941,1757109132722,-400.0,0.00036712,10]
[383755942,1757109132731,-400.0,0.00036712,10]
[383755943,1757109132741,-400.0,0.00036712,10]
[383755944,1757109132751,-425.6,0.00036712,10]
[383755945,1757109132760,-400.0,0.00036712,10]
[383755946,1757109132769,-400.0,0.00036712,10]
[383755947,1757109132779,-490.57,0.00036712,10]
[383755948,1757109132788,-400.0,0.00036712,10]
[383755949,1757109132798,-400.0,0.00036712,10]
[383755950,1757109132807,-400.0,0.00036712,10]
[383755951,1757109132816,-400.0,0.00036712,10]
[383755952,1757109132825,-641.44,0.00036712,10]
[383755953,1757109132836,-400.0,0.00036712,10]
[383755954,1757109132845,-419.23,0.00036712,10]
[383755955,1757109132855,-400.0,0.00036712,10]
[383755956,1757109132864,-401.8,0.00036712,10]
[383755957,1757109132874,-403.59,0.00036712,10]
[383755958,1757109132884,-400.0,0.00036712,10]
[383755959,1757109132894,-400.0,0.00036712,10]
[383755960,1757109132904,-400.0,0.00036712,10]
[383755961,1757109132914,-400.0,0.00036712,10]
[383755962,1757109132923,-548.51,0.00036712,10]
[383755963,1757109132933,-400.0,0.00036712,10]
[383755964,1757109132943,-452.54,0.00036712,10]
[383755965,1757109132952,-402.12876652,0.00036712,10]
[383755966,1757109132966,-400.0,0.00036712,10]
[383755967,1757109132975,-400.0,0.00036712,10]
[383755968,1757109132985,-400.0,0.00036712,10]
[383755969,1757109132995,-400.0,0.00036712,10]
[383755970,1757109133005,-440.39,0.00036712,10]
[383755971,1757109133015,-400.0,0.00036712,10]
[383755972,1757109133025,-400.0,0.00036712,10]
[383755973,1757109133038,-679.14,0.00036712,10]
[383755974,1757109133047,-433.62,0.00036712,10]
[383755975,1757109133055,-400.0,0.00036712,10]
[383755976,1757109133062,-400.0,0.00036712,10]
[383755977,1757109133073,-400.0,0.00036712,10]
[383755978,1757109133084,-400.0,0.00036712,10]
[383755979,1757109133093,-400.0,0.00036712,10]
[383755980,1757109133103,-229.75565414,0.00036712,10]
[383755981,1757109133112,-400.0,0.00036712,10]
[383755982,1757109133121,-400.0,0.00036712,10]
[383755983,1757109133131,-479.07616884,0.00036712,10]
[383755984,1757109133141,-589.1,0.00036712,10]
[383755985,1757109133152,-400.0,0.00036712,10]
[383755986,1757109133162,-551.08,0.00036712,10]
[383755987,1757109133172,-415.82,0.00036712,10]
[383755988,1757109133181,-576.99,0.00036712,10]
[383755989,1757109133191,-455.37,0.00036712,10]
[383755990,1757109133200,-400.0,0.00036712,10]
[383755991,1757109133210,-400.0,0.00036712,10]
[383755992,1757109133219,-400.0,0.00036712,10]
[383755993,1757109133228,-400.0,0.00036712,10]
[383755994,1757109133237,-410.32,0.00036712,10]
[383755995,1757109133246,-400.0,0.00036712,10]
[383755996,1757109133256,-400.0,0.00036712,10]
[383755997,1757109133265,-497.74,0.00036712,10]
[383755998,1757109133274,-400.0,0.00036712,10]
[383755999,1757109133283,-498.14,0.00036712,10]
[383756000,1757109133293,-400.0,0.00036712,10]
[383756001,1757109133302,-878.01,0.00036712,10]
[383756002,1757109133311,-400.0,0.00036712,10]
[383756003,1757109133321,-400.0,0.00036712,10]
[383756004,1757109133331,-400.0,0.00036712,10]
[383756005,1757109133340,-400.0,0.00036712,10]
[383756006,1757109133349,-400.0,0.00036712,10]
[383756007,1757109133359,-1227.44,0.00036712,10]
[383756008,1757109133368,-400.0,0.00036712,10]
[383756009,1757109133377,-400.0,0.00036712,10]
[383756010,1757109133386,-601.8,0.00036712,10]
[383756011,1757109133395,-400.0,0.00036712,10]
[383756012,1757109133404,-400.0,0.00036712,10]
[383756013,1757109133415,-400.0,0.00036712,10]
[383756014,1757109133424,-400.0,0.00036712,10]
[383756015,1757109133433,-400.0,0.00036712,10]
[383756016,1757109133443,-400.0,0.00036712,10]
[383756017,1757109133451,-400.0,0.00036712,10]
[383756018,1757109133461,-400.0,0.00036712,10]
[383756019,1757109133470,-400.0,0.00036712,10]
[383756020,1757109133480,-400.0,0.00036712,10]
[383756021,1757109133489,-404.89,0.00036712,10]
[383756022,1757109133499,-400.0,0.00036712,10]
[383756023,1757109133508,-400.0,0.00036712,10]
[383756024,1757109133518,-414.05,0.00036712,10]
[383756025,1757109133527,-562.13,0.00036712,10]
[383756026,1757109133536,-400.0,0.00036712,10]
[383756027,1757109133546,-410.49314168,0.00036712,10]
[383756028,1757109133555,-400.0,0.00036712,10]
[383756029,1757109133564,-457.02,0.00036712,10]
[383756030,1757109133574,-400.0,0.00036712,10]
[383756031,1757109133583,-400.0,0.00036712,10]
[383756032,1757109133593,-519.36,0.00036712,10]
[383756033,1757109133603,-400.0,0.00036712,10]
[383756034,1757109133612,-400.0,0.00036712,10]
[383756035,1757109133621,-400.0,0.00036712,10]
[383756036,1757109133630,-400.0,0.00036712,10]
[383756037,1757109133640,-400.0,0.00036712,10]
[383756038,1757109133649,-400.0,0.00036712,10]
[383756039,1757109133659,-400.0,0.00036712,10]
[383756040,1757109133669,-464.19,0.00036712,10]
[383756041,1757109133679,-400.0,0.00036712,10]
[383756042,1757109133688,-388.1571068,0.00036712,10]
[383756043,1757109133697,-400.0,0.00036712,10]
[383756044,1757109133707,-509.57,0.00036712,10]
[383756045,1757109133717,-400.0,0.00036712,10]
[383756046,1757109133727,-400.0,0.00036712,10]
[383756047,1757109133736,-400.0,0.00036712,10]
[383756048,1757109133746,-400.0,0.00036712,10]
[383756049,1757109133755,-400.0,0.00036712,10]
[383756050,1757109133765,-536.82,0.00036712,10]
[383756051,1757109133775,-400.0,0.00036712,10]
[383756052,1757109133784,-400.0,0.00036712,10]
[383756053,1757109133794,-400.0,0.00036712,10]
[383756054,1757109133804,-400.0,0.00036712,10]
[383756055,1757109133813,-404.26078897,0.00036712,7]
[383756056,1757109133823,-400.0,0.00036712,10]
[383756057,1757109133833,-400.0,0.00036712,10]
[383756058,1757109133842,-456.25,0.00036712,10]
[383756059,1757109133852,-400.0,0.00036712,10]
[383756060,1757109133861,-400.0,0.00036712,10]
[383756061,1757109133870,-400.0,0.00036712,10]
[383756062,1757109133880,-400.0,0.00036712,10]
[383756063,1757109133890,-400.0,0.00036712,10]
[383756064,1757109133899,-400.0,0.00036712,10]
[383756065,1757109133909,-400.0,0.00036712,10]
[383756066,1757109133920,-400.0,0.00036712,10]
[383756067,1757109133929,-400.0,0.00036712,10]
[383756068,1757109133937,-1325.01,0.00036712,10]
[383756069,1757109133945,-263.47041029,0.00036712,10]
[383756070,1757109133955,-662.17,0.00036712,10]
[383756071,1757109133967,-400.0,0.00036712,10]
[383756072,1757109133977,-400.0,0.00036712,10]
[383756073,1757109133986,-400.0,0.00036712,10]
[383756074,1757109133995,-400.0,0.00036712,10]
[383756075,1757109134005,-475.33,0.00036712,10]
[383756076,1757109134014,-400.0,0.00036712,10]
[383756077,1757109134023,-400.0,0.00036712,10]
[383756078,1757109134032,-580.54,0.00036712,10]
[383756079,1757109134041,-400.0,0.00036712,10]
[383756080,1757109134052,-468.08,0.00036712,10]
[383756081,1757109134061,-400.0,0.00036712,10]
[383756082,1757109134071,-400.0,0.00036712,10]
[383756083,1757109134080,-400.0,0.00036712,10]
[383756084,1757109134090,-400.0,0.00036712,10]
[383756085,1757109134099,-504.21,0.00036712,10]
[383756086,1757109134108,-400.0,0.00036712,10]
[383756087,1757109134117,-400.0,0.00036712,10]
[383756088,1757109134127,-470.77,0.00036712,10]
[383756089,1757109134136,-400.0,0.00036712,10]
[383756090,1757109134146,-400.0,0.00036712,10]
[383756091,1757109134155,-417.63,0.00036712,10]
[383756092,1757109134166,-400.0,0.00036712,10]
[383756093,1757109134175,-400.0,0.00036712,10]
[383756094,1757109134184,-400.0,0.00036712,10]
[383756095,1757109134194,-411.48840064,0.00036712,10]
[383756096,1757109134203,-400.0,0.00036712,10]
[383756097,1757109134212,-406.01,0.00036712,10]
[383756098,1757109134221,-165.22746311,0.00036712,10]
[383756099,1757109134230,-400.0,0.00036712,10]
[383756100,1757109134239,-400.0,0.00036712,10]
[383756101,1757109134249,-400.0,0.00036712,10]
[383756102,1757109134258,-400.0,0.00036712,10]
[383756103,1757109134268,-560.94,0.00036712,10]
[383756104,1757109134277,-400.0,0.00036712,10]
[383756105,1757109134286,-400.0,0.00036712,10]
[383756106,1757109134295,-671.39,0.00036712,10]
[383756107,1757109134304,-400.0,0.00036712,10]
[383756108,1757109134314,-660.54,0.00036712,10]
[383756109,1757109134323,-400.0,0.00036712,10]
[383756110,1757109134333,-400.0,0.00036712,10]
[383756111,1757109134342,-400.0,0.00036712,10]
[383756112,1757109134352,-400.0,0.00036712,10]
[383756113,1757109134361,-400.0,0.00036712,10]
[383756114,1757109134369,-400.0,0.00036712,10]
[383756115,1757109134378,-400.0,0.00036712,10]
[383756116,1757109134386,-514.72,0.00036712,10]
[383756117,1757109134395,-505.54,0.00036712,10]
[383756118,1757109134403,-400.0,0.00036712,10]
[383756119,1757109134411,-400.0,0.00036712,2]
[383756120,1757109134421,-400.0,0.00036712,10]
[383756121,1757109134430,-493.62,0.00036712,10]
[383756122,1757109134440,-400.0,0.00036712,10]
[383756123,1757109134449,-556.02,0.00036712,10]
[383756124,1757109134458,-400.0,0.00036712,10]
[383756125,1757109134468,-456.07,0.00036712,10]
[383756126,1757109134478,-400.0,0.00036712,10]
[383756127,1757109134488,-400.0,0.00036712,10]
[383756128,1757109134498,-737.77,0.00036712,10]
[383756129,1757109134507,-1553.38,0.00036712,10]
[383756130,1757109134516,-400.0,0.00036712,10]
[383756131,1757109134527,-400.0,0.00036712,10]
[383756132,1757109134537,-400.0,0.00036712,10]
[383756133,1757109134546,-400.0,0.00036712,10]
[383756134,1757109134555,-400.0,0.00036712,10]
[383756135,1757109134565,-521.95,0.00036712,10]
[383756136,1757109134574,-400.0,0.00036712,10]
[383756137,1757109134584,-418.68,0.00036712,10]
[383756138,1757109134594,-400.0,0.00036712,10]
[383756139,1757109134604,-583.81,0.00036712,10]
[383756140,1757109134614,-400.0,0.00036712,10]
[383756141,1757109134623,-400.0,0.00036712,10]
[383756142,1757109134634,-400.0,0.00036712,10]
[383756143,1757109134643,-430.27,0.00036712,10]
[383756144,1757109134654,-498.62,0.00036712,10]
[383756145,1757109134666,-400.0,0.00036712,10]
[383756146,1757109134676,-691.22,0.00036712,10]
[383756147,1757109134685,-400.0,0.00036712,10]
[383756148,1757109134694,-400.0,0.00036712,10]
[383756149,1757109134704,-579.68,0.00036712,10]
[383756150,1757109134715,-400.0,0.00036712,10]
[383756151,1757109134725,-402.21832178,0.00036712,10]
[383756152,1757109134734,-425.45,0.00036712,10]
[383756153,1757109134744,-400.0,0.00036712,10]
[383756154,1757109134754,-400.0,0.00036712,7]
[383756155,1757109134763,-601.12,0.00036712,10]
[383756156,1757109134773,-400.0,0.00036712,10]
[383756157,1757109134782,-400.0,0.00036712,10]
[383756158,1757109134791,-400.0,0.00036712,10]
[383756159,1757109134800,-406.08237461,0.00036712,10]
[383756160,1757109134811,-400.0,0.00036712,10]
[383756161,1757109134820,-400.0,0.00036712,10]
[383756162,1757109134830,-400.0,0.00036712,10]
[383756163,1757109134839,-401.24,0.00036712,10]
[383756164,1757109134848,-607.93,0.00036712,10]
[383756165,1757109134858,-1060.4,0.00036712,10]
[383756166,1757109134868,-400.0,0.00036712,10]
[383756167,1757109134878,-487.13,0.00036712,10]
[383756168,1757109134887,-565.1,0.00036712,10]
[383756169,1757109134897,-400.0,0.00036712,10]
[383756170,1757109134908,-400.0,0.00036712,10]
[383756171,1757109134919,-643.16,0.00036712,10]
[383756172,1757109134929,-599.17,0.00036712,10]
[383756173,1757109134940,-408.11,0.00036712,10]
[383756174,1757109134951,-400.0,0.00036712,10]
[383756175,1757109134964,-400.0,0.00036712,10]
[383756176,1757109134975,-400.0,0.00036712,10]
[383756177,1757109135215,-456.85136657,0.00036712,10]
[383756178,1757109135226,-400.0,0.00036712,10]
[383756179,1757109135235,-567.22,0.00036712,10]
[383756180,1757109135245,-400.0,0.00036712,10]
[383756181,1757109135256,-400.0,0.00036712,10]
[383756182,1757109135267,-400.0,0.00036712,10]
[383756183,1757109135277,-400.0,0.00036712,10]
[383756184,1757109135288,-400.0,0.00036712,10]
[383756185,1757109135299,-587.89,0.00036712,10]
[383756186,1757109135310,-400.0,0.00036712,10]
[383756187,1757109135321,-649.4,0.00036712,10]
[383756188,1757109135332,-400.0,0.00036712,10]
[383756189,1757109135342,-540.45,0.00036712,10]
[383756190,1757109135352,-444.03,0.00036712,10]
[383756191,1757109135362,-400.0,0.00036712,10]
[383756192,1757109135371,-521.91,0.00036712,10]
[383756193,1757109135381,-400.0,0.00036712,10]
[383756194,1757109135390,-577.54,0.00036712,10]
[383756195,1757109135400,-400.0,0.00036712,10]
[383756196,1757109135410,-400.0,0.00036712,10]
[383756197,1757109135420,-455.87,0.00036712,10]
[383756198,1757109135430,-400.0,0.00036712,10]
[383756199,1757109135440,-1000.0,0.00036712,10]
[383756200,1757109135452,-606.17,0.00036712,10]
[383756201,1757109135462,-400.0,0.00036712,10]
[383756202,1757109135472,-400.0,0.00036712,10]
[383756203,1757109135481,-400.0,0.00036712,10]
[383756204,1757109135491,-400.0,0.00036712,10]
[383756205,1757109135501,-552.86,0.00036712,10]
[383756206,1757109135511,-400.0,0.00036712,10]
[383756207,1757109135522,-400.0,0.00036712,10]
[383756208,1757109135531,-738.19,0.00036712,10]
[383756209,1757109135542,-400.0,0.00036712,10]
[383756210,1757109135553,-400.0,0.00036712,10]
[383756211,1757109135564,-400.0,0.00036712,10]
[383756212,1757109135576,-400.0,0.00036712,10]
[383756213,1757109135587,-400.0,0.00036712,10]
[383756214,1757109135597,-400.0,0.00036712,10]
[383756215,1757109135607,-400.0,0.00036712,10]
[383756216,1757109135616,-400.0,0.00036712,10]
[383756217,1757109135627,-400.0,0.00036712,10]
[383756218,1757109135637,-400.0,0.00036712,10]
[383756219,1757109135648,-400.0,0.00036712,10]
[383756220,1757109135658,-485.13,0.00036712,10]
[383756221,1757109135669,-400.0,0.00036712,10]
[383756222,1757109135679,-400.0,0.00036712,10]
[383756223,1757109135689,-400.0,0.00036712,10]
[383756224,1757109135698,-400.0,0.00036712,10]
[383756225,1757109135708,-400.0,0.00036712,10]
[383756226,1757109135718,-497.92,0.00036712,10]
[383756227,1757109135728,-534.68,0.00036712,10]
[383756228,1757109135738,-400.0,0.00036712,10]
[383756229,1757109135749,-541.76368309,0.00036712,10]
[383756230,1757109135758,-434.21,0.00036712,10]
[383756231,1757109135768,-400.0,0.00036712,10]
[383756232,1757109135778,-400.0,0.00036712,10]
[383756233,1757109135789,-400.0,0.00036712,10]
[383756234,1757109135800,-400.0,0.00036712,10]
[383756235,1757109135811,-400.0,0.00036712,10]
[383756236,1757109135821,-400.0,0.00036712,10]
[383756237,1757109135831,-400.0,0.00036712,10]
[383756238,1757109135842,-400.0,0.00036712,10]
[383756239,1757109135851,-251.21362736,0.00036712,10]
[383756240,1757109135860,-400.0,0.00036712,10]
[383756241,1757109135869,-400.0,0.00036712,10]
[383756242,1757109135879,-400.0,0.00036712,10]
[383756243,1757109135889,-400.0,0.00036712,10]
[383756244,1757109135899,-400.0,0.00036712,10]
[383756245,1757109135908,-400.0,0.00036712,10]
[383756246,1757109135918,-400.0,0.00036712,10]
[383756247,1757109135927,-400.0,0.00036712,10]
[383756248,1757109135937,-400.0,0.00036712,10]
[383756249,1757109135946,-400.0,0.00036712,10]
[383756250,1757109135955,-400.0,0.00036712,10]
[383756251,1757109135969,-400.0,0.00036712,10]
[383756252,1757109135978,-697.19,0.00036712,10]
[383756253,1757109135988,-400.0,0.00036712,10]
[383756254,1757109135999,-400.0,0.00036712,10]
[383756255,1757109136010,-400.0,0.00036712,10]
[383756256,1757109136022,-400.0,0.00036712,10]
[383756257,1757109136033,-400.0,0.00036712,10]
[383756258,1757109136044,-400.0,0.00036712,10]
[383756259,1757109136056,-588.33,0.00036712,10]
[383756260,1757109136068,-400.0,0.00036712,10]
[383756261,1757109136078,-400.0,0.00036712,10]
[383756262,1757109136088,-467.87,0.00036712,10]
[383756263,1757109136099,-400.0,0.00036712,10]
[383756264,1757109136111,-400.0,0.00036712,10]
[383756265,1757109136122,-400.0,0.00036712,10]
[383756266,1757109136133,-415.08283988,0.00036712,10]
[383756267,1757109136144,-374.22872601,0.00036712,10]
[383756268,1757109136155,-400.0,0.00036712,10]
[383756269,1757109136164,-400.0,0.00036712,10]
[383756270,1757109136175,-400.0,0.00036712,10]
[383756271,1757109136186,-400.0,0.00036712,10]
[383756272,1757109136196,-400.0,0.00036712,10]
[383756273,1757109136205,-400.0,0.00036712,10]
[383756274,1757109136216,-400.0,0.00036712,10]
[383756275,1757109136226,-400.0,0.00036712,10]
[383756276,1757109136236,-400.0,0.00036712,10]
[383756277,1757109136247,-400.0,0.00036712,10]
[383756278,1757109136260,-400.0,0.00036712,10]
[383756279,1757109136269,-400.0,0.00036712,10]
[383756280,1757109136280,-434.97,0.00036712,10]
[383756281,1757109136290,-400.0,0.00036712,10]
[383756282,1757109136300,-400.0,0.00036712,10]
[383756283,1757109136310,-400.0,0.00036712,10]
[383756284,1757109136321,-400.0,0.00036712,10]
[383756285,1757109136330,-547.22,0.00036712,10]
[383756286,1757109136339,-400.0,0.00036712,10]
[383756287,1757109136349,-9387.3,0.00036712,10]
[383756288,1757109136358,-400.0,0.00036712,10]
[383756289,1757109136368,-438.16,0.00036712,10]
[383756290,1757109136378,-400.44,0.00036712,10]
[383756291,1757109136388,-467.62,0.00036712,10]
[383756292,1757109136399,-400.0,0.00036712,10]
[383756293,1757109136409,-506.66,0.00036712,10]
[383756294,1757109136419,-400.0,0.00036712,10]
[383756295,1757109136428,-400.0,0.00036712,10]
[383756296,1757109136437,-400.0,0.00036712,10]
[383756297,1757109136448,-400.0,0.00036712,10]
[383756298,1757109136457,-400.0,0.00036712,10]
[383756299,1757109136467,-422.62,0.00036712,10]
[383756300,1757109136477,-406.5,0.00036712,10]
[383756301,1757109136488,-400.0,0.00036712,10]
[383756302,1757109136498,-400.0,0.00036712,10]
[383756303,1757109136509,-400.0,0.00036712,10]
[383756304,1757109136519,-400.0,0.00036712,10]
[383756305,1757109136529,-773.54,0.00036712,10]
[383756306,1757109136540,-765.31,0.00036712,10]
[383756307,1757109136551,-401.2,0.00036712,10]
[383756308,1757109136562,-400.0,0.00036712,10]
[383756309,1757109136571,-400.0,0.00036712,10]
[383756310,1757109136581,-400.0,0.00036712,10]
[383756311,1757109136590,-417.09,0.00036712,10]
[383756312,1757109136600,-441.78,0.00036712,10]
[383756313,1757109136609,-400.0,0.00036712,10]
[383756314,1757109136620,-400.0,0.00036712,10]